[Event "*** SCC Grand Prix: Titled Tuesday Blitz"]
[Site "Chess.com"]
[Date "2020.08.04"]
[Round "5"]
[White "Sanyura"]
[Black "DanielRensch"]
[Result "0-1"]
[WhiteElo "2401"]
[BlackElo "2565"]
[TimeControl "180+1"]
[EndTime "14:40:18 PDT"]
[Termination "DanielRensch won on time"]

1. e4 {[%clk 0:03:00.9]} 1... c5 {[%clk 0:03:00.2]} 2. Nf3 {[%clk 0:03:01]} 2...
d6 {[%clk 0:03:00.8]} 3. d4 {[%clk 0:03:01.6]} 3... cxd4 {[%clk 0:03:01.7]} 4.
Nxd4 {[%clk 0:03:02.3]} 4... Nf6 {[%clk 0:03:01.9]} 5. Nc3 {[%clk 0:03:02.7]}
5... a6 {[%clk 0:03:02.5]} 6. g3 {[%clk 0:03:02]} 6... e6 {[%clk 0:03:02.7]} 7.
Bg2 {[%clk 0:03:01.5]} 7... Be7 {[%clk 0:03:03.2]} 8. O-O {[%clk 0:03:01.9]}
8... O-O {[%clk 0:03:03.5]} 9. Re1 {[%clk 0:03:01.3]} 9... Nbd7 {[%clk
0:03:03.8]} 10. h3 {[%clk 0:02:59.7]} 10... Qc7 {[%clk 0:03:04.1]} 11. Be3
{[%clk 0:02:59.9]} 11... Rb8 {[%clk 0:03:03.4]} 12. a4 {[%clk 0:02:58.5]} 12...
b6 {[%clk 0:03:02.9]} 13. g4 {[%clk 0:02:52.7]} 13... Bb7 {[%clk 0:02:59.4]} 14.
g5 {[%clk 0:02:52.1]} 14... Ne8 {[%clk 0:02:59.3]} 15. Qh5 {[%clk 0:02:44.8]}
15... Ne5 {[%clk 0:02:56.3]} 16. Rad1 {[%clk 0:02:39.9]} 16... Nc6 {[%clk
0:02:24.8]} 17. Rd3 {[%clk 0:01:37.6]} 17... g6 {[%clk 0:01:35.2]} 18. Qh6
{[%clk 0:01:34.4]} 18... Ng7 {[%clk 0:01:35]} 19. Nxc6 {[%clk 0:01:10.9]} 19...
Bxc6 {[%clk 0:01:34.9]} 20. Bd4 {[%clk 0:01:11.2]} 20... e5 {[%clk 0:01:35.2]}
21. Be3 {[%clk 0:01:11.3]} 21... Rfc8 {[%clk 0:01:33.5]} 22. Qh4 {[%clk
0:01:00]} 22... h5 {[%clk 0:01:29.4]} 23. f4 {[%clk 0:00:54.9]} 23... exf4
{[%clk 0:01:18.5]} 24. Bxf4 {[%clk 0:00:55]} 24... Ne6 {[%clk 0:01:18.7]} 25.
Bd2 {[%clk 0:00:53.5]} 25... Qd8 {[%clk 0:01:08.2]} 26. Nd5 {[%clk 0:00:29.4]}
26... Bxd5 {[%clk 0:01:06.1]} 27. exd5 {[%clk 0:00:30.3]} 27... Bxg5 {[%clk
0:00:54.6]} 28. Qf2 {[%clk 0:00:07.2]} 28... Bxd2 {[%clk 0:00:50.6]} 29. dxe6
{[%clk 0:00:05.7]} 29... Bxe1 {[%clk 0:00:40.6]} 30. Qxf7+ {[%clk 0:00:06.2]}
30... Kh8 {[%clk 0:00:41.1]} 31. e7 {[%clk 0:00:06.5]} 31... Qg8 {[%clk
0:00:35.3]} 32. Qf4 {[%clk 0:00:03.9]} 32... Qg7 {[%clk 0:00:27.4]} 33. Rxd6
{[%clk 0:00:03.7]} 33... Re8 {[%clk 0:00:24.8]} 34. Re6 {[%clk 0:00:02.3]} 34...
Rbc8 {[%clk 0:00:18.8]} 35. Bb7 {[%clk 0:00:01.6]} 35... Rc7 {[%clk 0:00:17.8]}
0-1

[Event "*** SCC Grand Prix: Titled Tuesday Blitz"]
[Site "Chess.com"]
[Date "2020.08.04"]
[Round "5"]
[White "crescentmoon2411"]
[Black "maxip32"]
[Result "1/2-1/2"]
[WhiteElo "2770"]
[BlackElo "2472"]
[TimeControl "180+1"]
[EndTime "14:40:19 PDT"]
[Termination "Game drawn by agreement"]

1. c4 {[%clk 0:03:00.9]} 1... g6 {[%clk 0:02:59.9]} 2. Nc3 {[%clk 0:03:00.7]}
2... Bg7 {[%clk 0:03:00.8]} 3. d4 {[%clk 0:03:00.9]} 3... Nf6 {[%clk 0:02:59.4]}
4. e4 {[%clk 0:03:01.2]} 4... d6 {[%clk 0:02:59.5]} 5. f4 {[%clk 0:03:01.6]}
5... c5 {[%clk 0:02:59]} 6. d5 {[%clk 0:03:00.9]} 6... O-O {[%clk 0:02:58.7]} 7.
Nf3 {[%clk 0:02:59.9]} 7... e6 {[%clk 0:02:59]} 8. dxe6 {[%clk 0:03:00]} 8...
fxe6 {[%clk 0:02:58.9]} 9. Bd3 {[%clk 0:03:00.3]} 9... a6 {[%clk 0:02:59.3]} 10.
O-O {[%clk 0:02:59.6]} 10... Nc6 {[%clk 0:02:52.2]} 11. Ng5 {[%clk 0:02:34.9]}
11... b6 {[%clk 0:02:44.8]} 12. Be3 {[%clk 0:02:32]} 12... Ra7 {[%clk
0:02:43.8]} 13. Kh1 {[%clk 0:01:36]} 13... Qe8 {[%clk 0:02:34.2]} 14. Bc2 {[%clk
0:01:28.3]} 14... Qe7 {[%clk 0:02:25.6]} 15. Qd2 {[%clk 0:01:20]} 15... Rd7
{[%clk 0:02:25]} 16. Rae1 {[%clk 0:01:18.2]} 16... Bb7 {[%clk 0:02:24.7]} 17. f5
{[%clk 0:01:11.3]} 17... Nd8 {[%clk 0:02:14.9]} 18. fxe6 {[%clk 0:01:06.8]}
18... Nxe6 {[%clk 0:02:14.8]} 19. Nd5 {[%clk 0:01:05.8]} 19... Nxd5 {[%clk
0:01:52.9]} 20. exd5 {[%clk 0:01:06.7]} 20... Rxf1+ {[%clk 0:01:47.8]} 21. Rxf1
{[%clk 0:01:07.6]} 21... Nxg5 {[%clk 0:01:48.2]} 22. Bxg5 {[%clk 0:01:07]} 22...
Qe5 {[%clk 0:01:48.8]} 23. b3 {[%clk 0:00:53.5]} 23... Rf7 {[%clk 0:01:41.7]}
24. Rxf7 {[%clk 0:00:48.9]} 24... Kxf7 {[%clk 0:01:41]} 25. g3 {[%clk
0:00:45.6]} 25... Bc8 {[%clk 0:01:36.3]} 26. Kg2 {[%clk 0:00:44.5]} 26... Bf5
{[%clk 0:01:34.1]} 27. Bxf5 {[%clk 0:00:33.5]} 27... Qxf5 {[%clk 0:01:33.4]} 28.
Qf4 {[%clk 0:00:31.9]} 28... Qxf4 {[%clk 0:01:29.1]} 29. Bxf4 {[%clk 0:00:29.9]}
29... Ke7 {[%clk 0:01:28.1]} 30. h4 {[%clk 0:00:26.6]} 30... Kd7 {[%clk
0:01:24.4]} 31. Kf3 {[%clk 0:00:25.8]} 31... Bf6 {[%clk 0:01:23.3]} 32. Bh6
{[%clk 0:00:20.6]} 32... Be5 {[%clk 0:01:16.4]} 33. g4 {[%clk 0:00:19.4]} 33...
Ke7 {[%clk 0:01:15.9]} 34. h5 {[%clk 0:00:17.6]} 34... Kf7 {[%clk 0:01:08.9]}
35. Ke4 {[%clk 0:00:17]} 35... Kf6 {[%clk 0:01:06.7]} 36. a4 {[%clk 0:00:15.9]}
36... Ke7 {[%clk 0:00:49.9]} 37. a5 {[%clk 0:00:15.1]} 37... bxa5 {[%clk
0:00:49]} 38. Be3 {[%clk 0:00:14.9]} 38... Bc3 {[%clk 0:00:47.8]} 39. Bg5+
{[%clk 0:00:14.7]} 39... Kd7 {[%clk 0:00:47.1]} 40. Bf4 {[%clk 0:00:13.4]} 40...
Bb2 {[%clk 0:00:46]} 41. Bd2 {[%clk 0:00:13]} 41... a4 {[%clk 0:00:44.6]} 42.
bxa4 {[%clk 0:00:13.6]} 42... Be5 {[%clk 0:00:44.5]} 43. Bg5 {[%clk 0:00:13]}
43... Kc7 {[%clk 0:00:44.1]} 44. Bf4 {[%clk 0:00:11.8]} 44... Bf6 {[%clk
0:00:43.7]} 45. hxg6 {[%clk 0:00:10.7]} 45... hxg6 {[%clk 0:00:44.6]} 46. Bd2
{[%clk 0:00:10]} 46... Kd7 {[%clk 0:00:44.4]} 1/2-1/2

[Event "*** SCC Grand Prix: Titled Tuesday Blitz"]
[Site "Chess.com"]
[Date "2020.08.04"]
[Round "5"]
[White "aljado"]
[Black "Filip_Covic"]
[Result "0-1"]
[WhiteElo "2122"]
[BlackElo "2361"]
[TimeControl "180+1"]
[EndTime "14:40:19 PDT"]
[Termination "Filip_Covic won by resignation"]

1. e4 {[%clk 0:03:00]} 1... e6 {[%clk 0:02:59]} 2. d4 {[%clk 0:02:58.6]} 2... d5
{[%clk 0:02:56.2]} 3. exd5 {[%clk 0:02:59]} 3... exd5 {[%clk 0:02:54.4]} 4. c4
{[%clk 0:02:59.4]} 4... Nf6 {[%clk 0:02:49.9]} 5. Nc3 {[%clk 0:02:59]} 5... Be7
{[%clk 0:02:38.2]} 6. Nf3 {[%clk 0:02:58]} 6... O-O {[%clk 0:02:36]} 7. Bd3
{[%clk 0:02:58.3]} 7... dxc4 {[%clk 0:02:33.6]} 8. Bxc4 {[%clk 0:02:57]} 8...
Nc6 {[%clk 0:02:33.9]} 9. O-O {[%clk 0:02:54.8]} 9... Bg4 {[%clk 0:02:29.2]} 10.
Be3 {[%clk 0:02:54]} 10... Bxf3 {[%clk 0:02:24.4]} 11. Qxf3 {[%clk 0:02:51]}
11... Nxd4 {[%clk 0:02:24.1]} 12. Qf4 {[%clk 0:02:35.3]} 12... Nc6 {[%clk
0:02:15.1]} 13. Rad1 {[%clk 0:02:32.4]} 13... Bd6 {[%clk 0:02:07.5]} 14. Qh4
{[%clk 0:02:30.8]} 14... h6 {[%clk 0:01:54.4]} 15. Rfe1 {[%clk 0:02:24.6]} 15...
Ne5 {[%clk 0:01:51.3]} 16. Be2 {[%clk 0:02:14.5]} 16... Ng6 {[%clk 0:01:49.2]}
17. Qc4 {[%clk 0:02:06]} 17... a6 {[%clk 0:01:43.1]} 18. Bf3 {[%clk 0:01:59.3]}
18... Ne5 {[%clk 0:01:40.9]} 19. Qe2 {[%clk 0:01:50.3]} 19... Qc8 {[%clk
0:01:37.4]} 20. g3 {[%clk 0:01:35.1]} 20... Nxf3+ {[%clk 0:01:20.2]} 21. Qxf3
{[%clk 0:01:33.8]} 21... Qh3 {[%clk 0:01:13.2]} 22. Rd4 {[%clk 0:01:22.6]} 22...
Qh5 {[%clk 0:00:54.5]} 23. Qxb7 {[%clk 0:01:20.4]} 23... Rab8 {[%clk 0:00:52.3]}
24. Qxa6 {[%clk 0:01:19.6]} 24... Rxb2 {[%clk 0:00:51.9]} 25. Rh4 {[%clk
0:01:13.9]} 25... Qf5 {[%clk 0:00:47.6]} 26. Qf1 {[%clk 0:00:49.6]} 26... Ng4
{[%clk 0:00:42.3]} 27. Bd4 {[%clk 0:00:44.1]} 27... c5 {[%clk 0:00:35]} 28. Be3
{[%clk 0:00:39.3]} 28... Ne5 {[%clk 0:00:30]} 29. Kh1 {[%clk 0:00:06.7]} 29...
Nf3 {[%clk 0:00:23.3]} 30. Bc1 {[%clk 0:00:05.6]} 30... Rc2 {[%clk 0:00:17.8]}
31. Nd5 {[%clk 0:00:02.2]} 31... Qxd5 {[%clk 0:00:15.5]} 0-1

[Event "*** SCC Grand Prix: Titled Tuesday Blitz"]
[Site "Chess.com"]
[Date "2020.08.04"]
[Round "5"]
[White "ChronicUnhappiness"]
[Black "abfchess"]
[Result "1-0"]
[WhiteElo "2384"]
[BlackElo "2143"]
[TimeControl "180+1"]
[EndTime "14:40:21 PDT"]
[Termination "ChronicUnhappiness won by resignation"]

1. d4 {[%clk 0:03:00.9]} 1... d5 {[%clk 0:02:59.2]} 2. c4 {[%clk 0:03:00.4]}
2... e6 {[%clk 0:02:59.3]} 3. Nc3 {[%clk 0:03:00.2]} 3... c6 {[%clk 0:02:59.6]}
4. e3 {[%clk 0:02:58]} 4... Bd6 {[%clk 0:02:57]} 5. Be2 {[%clk 0:02:54.4]} 5...
f5 {[%clk 0:02:56.9]} 6. f4 {[%clk 0:02:53.7]} 6... Nf6 {[%clk 0:02:56.8]} 7.
Nf3 {[%clk 0:02:53.9]} 7... O-O {[%clk 0:02:57.1]} 8. O-O {[%clk 0:02:53.9]}
8... Ne4 {[%clk 0:02:57.5]} 9. Qc2 {[%clk 0:02:47.1]} 9... Nd7 {[%clk
0:02:54.4]} 10. Rb1 {[%clk 0:02:46.3]} 10... a5 {[%clk 0:02:53.5]} 11. Nxe4
{[%clk 0:02:23.7]} 11... fxe4 {[%clk 0:02:53.1]} 12. Ne5 {[%clk 0:02:24.6]}
12... Qf6 {[%clk 0:02:44.1]} 13. Bd2 {[%clk 0:02:14.5]} 13... Qh6 {[%clk
0:02:33.4]} 14. b4 {[%clk 0:02:00]} 14... axb4 {[%clk 0:02:28.2]} 15. Bxb4
{[%clk 0:01:59.5]} 15... Bxb4 {[%clk 0:02:28.3]} 16. Rxb4 {[%clk 0:01:57.9]}
16... Nxe5 {[%clk 0:02:25.5]} 17. dxe5 {[%clk 0:01:57.2]} 17... g5 {[%clk
0:02:20.5]} 18. f5 {[%clk 0:01:30.9]} 18... Rxf5 {[%clk 0:02:07.7]} 19. Rxf5
{[%clk 0:01:29.9]} 19... exf5 {[%clk 0:02:08.6]} 20. cxd5 {[%clk 0:01:29.4]}
20... cxd5 {[%clk 0:02:04.6]} 21. Qc7 {[%clk 0:01:15.3]} 21... Qc6 {[%clk
0:01:30.9]} 22. Qd8+ {[%clk 0:01:11.7]} 22... Kg7 {[%clk 0:01:25.6]} 23. Qxg5+
{[%clk 0:01:10.8]} 23... Kh8 {[%clk 0:01:24.6]} 24. Qd8+ {[%clk 0:00:43.2]}
24... Kg7 {[%clk 0:01:23.6]} 25. h3 {[%clk 0:00:27.7]} 25... Rxa2 {[%clk
0:01:05.9]} 26. Rb6 {[%clk 0:00:26.6]} 26... Ra1+ {[%clk 0:01:03.1]} 27. Kh2
{[%clk 0:00:26.1]} 27... Qd7 {[%clk 0:00:59]} 28. Qf6+ {[%clk 0:00:18.8]} 28...
Kg8 {[%clk 0:00:55.1]} 29. Rd6 {[%clk 0:00:18]} 29... Ra6 {[%clk 0:00:43.1]} 30.
Qg5+ {[%clk 0:00:14.7]} 30... Qg7 {[%clk 0:00:43.3]} 31. Rd8+ {[%clk 0:00:13.4]}
31... Kf7 {[%clk 0:00:43.7]} 32. Bh5+ {[%clk 0:00:11.8]} 32... Rg6 {[%clk
0:00:41.6]} 33. Bxg6+ {[%clk 0:00:11.4]} 33... hxg6 {[%clk 0:00:42.5]} 34. Rxc8
{[%clk 0:00:09.2]} 34... Qxe5+ {[%clk 0:00:42.9]} 35. Qf4 {[%clk 0:00:08.8]}
35... Qxf4+ {[%clk 0:00:42]} 36. exf4 {[%clk 0:00:08.5]} 36... d4 {[%clk
0:00:42.9]} 37. Rd8 {[%clk 0:00:07.2]} 37... d3 {[%clk 0:00:43.1]} 38. Kg1
{[%clk 0:00:07.7]} 38... b5 {[%clk 0:00:43.3]} 39. Kf2 {[%clk 0:00:07.6]} 39...
Ke7 {[%clk 0:00:44]} 40. Rb8 {[%clk 0:00:07]} 40... d2 {[%clk 0:00:43]} 41. Ke2
{[%clk 0:00:07.2]} 41... e3 {[%clk 0:00:43.9]} 42. Rxb5 {[%clk 0:00:06.8]} 42...
Kd6 {[%clk 0:00:44.8]} 43. Rb3 {[%clk 0:00:06.9]} 43... Kd5 {[%clk 0:00:45.3]}
44. Rxe3 {[%clk 0:00:06.6]} 44... Kd4 {[%clk 0:00:46.2]} 45. Rd3+ {[%clk
0:00:06.9]} 45... Ke4 {[%clk 0:00:46.5]} 46. Rxd2 {[%clk 0:00:06.7]} 46... Kxf4
{[%clk 0:00:47.4]} 47. Kf2 {[%clk 0:00:07.3]} 47... g5 {[%clk 0:00:47.5]} 48.
Rd4+ {[%clk 0:00:07.4]} 48... Ke5 {[%clk 0:00:47.9]} 49. Ra4 {[%clk 0:00:08.3]}
49... f4 {[%clk 0:00:47.8]} 50. g3 {[%clk 0:00:09.1]} 50... fxg3+ {[%clk
0:00:47.9]} 51. Kxg3 {[%clk 0:00:09.5]} 51... Kf5 {[%clk 0:00:48.8]} 52. Ra5+
{[%clk 0:00:09.8]} 52... Kg6 {[%clk 0:00:49.7]} 1-0

[Event "*** SCC Grand Prix: Titled Tuesday Blitz"]
[Site "Chess.com"]
[Date "2020.08.04"]
[Round "5"]
[White "bazar-wokzal"]
[Black "Chessbard1972"]
[Result "0-1"]
[WhiteElo "2470"]
[BlackElo "2338"]
[TimeControl "180+1"]
[EndTime "14:40:27 PDT"]
[Termination "Chessbard1972 won on time"]

1. e4 {[%clk 0:03:00.9]} 1... c5 {[%clk 0:02:59.3]} 2. c3 {[%clk 0:03:00.2]}
2... d5 {[%clk 0:02:58.3]} 3. exd5 {[%clk 0:02:59.5]} 3... Qxd5 {[%clk
0:02:58.8]} 4. d4 {[%clk 0:03:00.4]} 4... Nf6 {[%clk 0:02:59]} 5. Nf3 {[%clk
0:03:00.5]} 5... Bg4 {[%clk 0:02:59.4]} 6. dxc5 {[%clk 0:03:00.2]} 6... Qxc5
{[%clk 0:02:58.4]} 7. h3 {[%clk 0:02:59.8]} 7... Bh5 {[%clk 0:02:55]} 8. Be3
{[%clk 0:02:59.9]} 8... Qc8 {[%clk 0:02:53.3]} 9. Na3 {[%clk 0:02:37.1]} 9... a6
{[%clk 0:02:40.6]} 10. Qa4+ {[%clk 0:02:31.4]} 10... Nbd7 {[%clk 0:02:37.1]} 11.
g4 {[%clk 0:02:23.4]} 11... Bg6 {[%clk 0:02:35.6]} 12. Bg2 {[%clk 0:02:10]}
12... Be4 {[%clk 0:02:16.1]} 13. O-O-O {[%clk 0:01:29.6]} 13... Bc6 {[%clk
0:02:13.4]} 14. Qa5 {[%clk 0:01:28.7]} 14... e6 {[%clk 0:01:54.6]} 15. Nc4
{[%clk 0:01:27.3]} 15... Be7 {[%clk 0:01:49]} 16. Nd6+ {[%clk 0:01:24.5]} 16...
Bxd6 {[%clk 0:01:48]} 17. Rxd6 {[%clk 0:01:25.4]} 17... O-O {[%clk 0:01:46.9]}
18. Rhd1 {[%clk 0:01:23.8]} 18... Nd5 {[%clk 0:01:44.2]} 19. Nd4 {[%clk
0:01:10.2]} 19... Qb8 {[%clk 0:01:13.8]} 20. Qa3 {[%clk 0:00:42.1]} 20... N7b6
{[%clk 0:00:45.1]} 21. Nxc6 {[%clk 0:00:39.6]} 21... bxc6 {[%clk 0:00:44.4]} 22.
Rxc6 {[%clk 0:00:35.1]} 22... Nxe3 {[%clk 0:00:43.5]} 23. fxe3 {[%clk
0:00:34.6]} 23... Qe5 {[%clk 0:00:40.8]} 24. Qc5 {[%clk 0:00:30.4]} 24... Nd5
{[%clk 0:00:38.6]} 25. Bxd5 {[%clk 0:00:25.5]} 25... exd5 {[%clk 0:00:36.9]} 26.
Rxd5 {[%clk 0:00:25.4]} 26... Qg3 {[%clk 0:00:35.1]} 27. Rd2 {[%clk 0:00:15.8]}
27... Qxh3 {[%clk 0:00:32.4]} 28. g5 {[%clk 0:00:15.4]} 28... Rae8 {[%clk
0:00:26.2]} 29. Rxa6 {[%clk 0:00:10.2]} 29... Qf1+ {[%clk 0:00:24.2]} 30. Kc2
{[%clk 0:00:09.5]} 30... Qxa6 {[%clk 0:00:23.7]} 31. Qd5 {[%clk 0:00:05.5]}
31... Qg6+ {[%clk 0:00:23]} 32. Kc1 {[%clk 0:00:03.6]} 32... Rxe3 {[%clk
0:00:22.6]} 33. b4 {[%clk 0:00:02.9]} 33... Re1+ {[%clk 0:00:21.6]} 34. Kb2
{[%clk 0:00:03.4]} 34... Rb1+ {[%clk 0:00:20.5]} 35. Ka3 {[%clk 0:00:03.9]}
35... Qa6+ {[%clk 0:00:16.9]} 0-1

[Event "*** SCC Grand Prix: Titled Tuesday Blitz"]
[Site "Chess.com"]
[Date "2020.08.04"]
[Round "5"]
[White "Msb2"]
[Black "Carnivoras"]
[Result "0-1"]
[WhiteElo "2790"]
[BlackElo "2633"]
[TimeControl "180+1"]
[EndTime "14:40:28 PDT"]
[Termination "Carnivoras won on time"]

1. d4 {[%clk 0:03:00.9]} 1... d5 {[%clk 0:02:58.9]} 2. c4 {[%clk 0:03:00.5]}
2... c6 {[%clk 0:02:58.6]} 3. Nc3 {[%clk 0:03:01]} 3... e6 {[%clk 0:02:56.4]} 4.
e3 {[%clk 0:03:01.3]} 4... Nf6 {[%clk 0:02:55.8]} 5. Nf3 {[%clk 0:03:01.8]} 5...
Nbd7 {[%clk 0:02:56]} 6. Be2 {[%clk 0:03:02.4]} 6... Bd6 {[%clk 0:02:54]} 7. O-O
{[%clk 0:03:00.8]} 7... O-O {[%clk 0:02:54.6]} 8. a4 {[%clk 0:03:01.4]} 8... b6
{[%clk 0:02:52.8]} 9. Qc2 {[%clk 0:03:01]} 9... Bb7 {[%clk 0:02:52.4]} 10. Rd1
{[%clk 0:03:00.9]} 10... Qc7 {[%clk 0:02:51.6]} 11. a5 {[%clk 0:03:00.6]} 11...
Rac8 {[%clk 0:02:41.9]} 12. Bd2 {[%clk 0:02:52]} 12... Qb8 {[%clk 0:02:39.1]}
13. a6 {[%clk 0:02:17.7]} 13... Ba8 {[%clk 0:02:36.8]} 14. e4 {[%clk 0:02:18.3]}
14... dxe4 {[%clk 0:02:32.5]} 15. Nxe4 {[%clk 0:02:19.2]} 15... Nxe4 {[%clk
0:02:25.5]} 16. Qxe4 {[%clk 0:02:20.1]} 16... e5 {[%clk 0:02:07]} 17. dxe5
{[%clk 0:02:08.3]} 17... Nxe5 {[%clk 0:02:05.1]} 18. c5 {[%clk 0:01:47.6]} 18...
Nxf3+ {[%clk 0:02:00]} 19. Bxf3 {[%clk 0:01:48.5]} 19... Bxc5 {[%clk 0:01:58]}
20. Bc3 {[%clk 0:01:48.6]} 20... Rfe8 {[%clk 0:01:50.9]} 21. Qg4 {[%clk
0:01:39.7]} 21... Bf8 {[%clk 0:01:50.1]} 22. Rd7 {[%clk 0:01:39.8]} 22... Rc7
{[%clk 0:01:33.7]} 23. Rad1 {[%clk 0:01:24.1]} 23... c5 {[%clk 0:01:08.2]} 24.
Bxa8 {[%clk 0:00:44.4]} 24... Rxd7 {[%clk 0:01:05.7]} 25. Rxd7 {[%clk
0:00:45.3]} 25... Qxa8 {[%clk 0:01:05.4]} 26. Qf5 {[%clk 0:00:38.9]} 26... Re7
{[%clk 0:00:58.1]} 27. h4 {[%clk 0:00:26.5]} 27... Qc8 {[%clk 0:00:50.1]} 28.
Rxe7 {[%clk 0:00:16.5]} 28... Qxf5 {[%clk 0:00:47.5]} 29. Rxa7 {[%clk
0:00:17.4]} 29... Qb1+ {[%clk 0:00:27.6]} 30. Kh2 {[%clk 0:00:17.3]} 30... Bd6+
{[%clk 0:00:27.7]} 31. g3 {[%clk 0:00:17.7]} 31... h6 {[%clk 0:00:26.4]} 32. Rd7
{[%clk 0:00:16.2]} 32... Qf5 {[%clk 0:00:20.9]} 33. Rxd6 {[%clk 0:00:06.4]}
33... Qxf2+ {[%clk 0:00:20.9]} 34. Kh3 {[%clk 0:00:07.1]} 34... Qf1+ {[%clk
0:00:21.4]} 35. Kh2 {[%clk 0:00:07.7]} 35... Qxa6 {[%clk 0:00:22.3]} 36. Rd8+
{[%clk 0:00:05.4]} 36... Kh7 {[%clk 0:00:22.1]} 37. Rd2 {[%clk 0:00:05.8]} 37...
b5 {[%clk 0:00:22]} 38. Be5 {[%clk 0:00:03.2]} 38... f6 {[%clk 0:00:21.5]} 39.
Bf4 {[%clk 0:00:03.4]} 39... c4 {[%clk 0:00:21.1]} 0-1

[Event "*** SCC Grand Prix: Titled Tuesday Blitz"]
[Site "Chess.com"]
[Date "2020.08.04"]
[Round "5"]
[White "Micki-taryan"]
[Black "Hrant_ChessMood"]
[Result "1-0"]
[WhiteElo "3065"]
[BlackElo "2858"]
[TimeControl "180+1"]
[EndTime "14:40:29 PDT"]
[Termination "Micki-taryan won on time"]

1. e3 {[%clk 0:03:00.4]} 1... e5 {[%clk 0:02:59]} 2. c4 {[%clk 0:02:59.7]} 2...
Nf6 {[%clk 0:02:58.7]} 3. Nc3 {[%clk 0:02:59.5]} 3... Bb4 {[%clk 0:02:58]} 4.
Nge2 {[%clk 0:02:57.5]} 4... O-O {[%clk 0:02:57.5]} 5. a3 {[%clk 0:02:57.1]}
5... Bxc3 {[%clk 0:02:55.7]} 6. Nxc3 {[%clk 0:02:58]} 6... Re8 {[%clk
0:02:55.4]} 7. Be2 {[%clk 0:02:57.6]} 7... c5 {[%clk 0:02:50.7]} 8. b4 {[%clk
0:02:52.5]} 8... d6 {[%clk 0:02:45.6]} 9. O-O {[%clk 0:02:51.4]} 9... Nc6 {[%clk
0:02:44.9]} 10. Rb1 {[%clk 0:02:32.7]} 10... b6 {[%clk 0:02:43.5]} 11. d3 {[%clk
0:02:30.4]} 11... Bb7 {[%clk 0:02:39.3]} 12. b5 {[%clk 0:02:30.6]} 12... Ne7
{[%clk 0:02:36.2]} 13. e4 {[%clk 0:02:31.2]} 13... Ng6 {[%clk 0:02:36.9]} 14. g3
{[%clk 0:02:27.8]} 14... Qd7 {[%clk 0:02:20.2]} 15. f4 {[%clk 0:02:18.8]} 15...
exf4 {[%clk 0:02:19.2]} 16. gxf4 {[%clk 0:02:18.8]} 16... Qh3 {[%clk 0:02:17]}
17. Rf3 {[%clk 0:02:07.3]} 17... Qh4 {[%clk 0:02:08.9]} 18. Bd2 {[%clk
0:01:57.1]} 18... Nh5 {[%clk 0:01:55.3]} 19. Qf1 {[%clk 0:01:53.8]} 19... Qg4+
{[%clk 0:01:45.1]} 20. Kh1 {[%clk 0:01:47.9]} 20... Qd7 {[%clk 0:01:24.9]} 21.
f5 {[%clk 0:01:32]} 21... Ne5 {[%clk 0:01:16.6]} 22. Rh3 {[%clk 0:01:31.5]}
22... Nf6 {[%clk 0:01:15.9]} 23. Bg5 {[%clk 0:01:26.3]} 23... Qe7 {[%clk
0:00:55.9]} 24. Qg2 {[%clk 0:01:24.2]} 24... Ned7 {[%clk 0:00:52.3]} 25. Rg1
{[%clk 0:01:23.7]} 25... g6 {[%clk 0:00:46.2]} 26. Nd5 {[%clk 0:01:18.7]} 26...
Bxd5 {[%clk 0:00:45.6]} 27. cxd5 {[%clk 0:01:19.6]} 27... c4 {[%clk 0:00:39.1]}
28. Rh4 {[%clk 0:01:08]} 28... cxd3 {[%clk 0:00:38.7]} 29. Bxd3 {[%clk
0:01:08.9]} 29... Qe5 {[%clk 0:00:34.4]} 30. Bb1 {[%clk 0:00:59.8]} 30... Rac8
{[%clk 0:00:33]} 31. Qh3 {[%clk 0:00:59.1]} 31... Rc3 {[%clk 0:00:30.2]} 32. Qg2
{[%clk 0:00:53]} 32... Rxa3 {[%clk 0:00:27.2]} 33. Bf4 {[%clk 0:00:53.4]} 33...
Qe7 {[%clk 0:00:18.4]} 34. fxg6 {[%clk 0:00:52.8]} 34... fxg6 {[%clk 0:00:17.8]}
35. e5 {[%clk 0:00:53.2]} 35... Nxe5 {[%clk 0:00:13.6]} 36. Bxe5 {[%clk
0:00:52.9]} 36... Qxe5 {[%clk 0:00:11.5]} 37. Bxg6 {[%clk 0:00:53.3]} 37... Re7
{[%clk 0:00:03.3]} 38. Rxh7 {[%clk 0:00:41.1]} 38... Kf8 {[%clk 0:00:01.8]} 39.
Rh8+ {[%clk 0:00:23.1]} 39... Ng8 {[%clk 0:00:01.4]} 40. Bh7 {[%clk 0:00:22.4]}
1-0